Cogmind - Beta 16.1 @@@ ROGUE MODE // 2026.04.22 @ 13:53:57 Player: SunShine214 Result: Destroyed by Y-45 Defender with Beam Rifle Performance ------------- Evolutions (2) 1000 Regions Visited (3) 600 Robots Destroyed (78) 390 Value Destroyed (2201) 2201 Prototype IDs (2) 40 Alien Tech Used (0) 0 Bonus (0) 0 TOTAL SCORE: 4231 Bonus ------- None Cogmind --------- Core Integrity 0/550 Matter 270/300 Energy 203/265 System Corruption 0% Temperature Cool (11) Movement Flying (37) Location -8/Materials Parts ------- > --- POWER (1) -------- Improved Ion Engine > --- PROPULSION (3) --- Compact Wheel VTOL Module VTOL Module > --- UTILITY (5) ------ Advanced Heat Sink Improved Sensor Array Improved Signal Interpreter Hacking Suite > --- WEAPON (2) ------- (None) > --- INVENTORY (5) ---- Light Armor Plating Rocket Launcher Improved Grenade Launcher Plasma Cutter Heavy Hammer Peak State ------------ > --- POWER ------------ Light Nuclear Core > --- PROPULSION ------- Light Treads Improved Treads Aluminum Leg > --- UTILITY ---------- Large Storage Unit Improved Sensor Array Improved Signal Interpreter Armor Integrity Analyzer Medium Armor Plating > --- WEAPON ----------- Plasma Cannon Plasma Cannon > --- INVENTORY -------- VTOL Module VTOL Module Small Storage Unit Large Storage Unit Improved Sensor Array Signal Interpreter Hardened Light Armor Plating Hacking Suite Rocket Launcher Rocket Launcher Rocket Launcher Plasma Cutter Heavy Hammer [Rating: 30] Favorites ----------- Power Light Ion Engine Engine Light Ion Engine Power Core Light Nuclear Core Propulsion Aluminum Leg Treads Light Treads Leg Aluminum Leg Wheel Compact Wheel Hover Unit Airjet Flight Unit VTOL Module Utility Large Storage Unit Device Sensor Array Storage Large Storage Unit Processor Improved Signal Interpreter Hackware Hacking Suite Protection Hardened Light Armor Plating Weapon Plasma Cannon Energy Gun EM Pulse Gun Energy Cannon Plasma Cannon Ballistic Gun Heavy Assault Rifle Launcher Grenade Launcher Special Weapon Mining Laser Impact Weapon Heavy Hammer Slashing Weapon Blade Saw Build | -11 -10 -9 -8 ------- Run | Yrd Mat Mat Mat Slots Evolved 4 | . . 2 2 Power . | . . . . Propulsion 1 | . . . 1 Utility 3 | . . 2 1 Weapon . | . . . . Parts Attached 69 | 7 2 27 33 Power 8 | 1 . 3 4 Engine 6 | 1 . 3 2 Core 2 | . . . 2 Reactor . | . . . . Propulsion 18 | 3 . 7 8 Treads 4 | 1 . . 3 Leg 10 | 2 . 7 1 Wheel 1 | . . . 1 Hover 1 | . . . 1 Flight 2 | . . . 2 Utility 19 | 1 1 7 10 Device 5 | . . 2 3 Storage 3 | 1 1 . 1 Processor 2 | . . . 2 Hackware 2 | . . 1 1 Protection 7 | . . 4 3 Artifact . | . . . . Weapon 24 | 2 1 10 11 Energy Gun 7 | 2 . 3 2 Energy Cannon 7 | . . 1 6 Ballistic Gun 4 | . . 4 . Ballistic Cannon . | . . . . Launcher 3 | . . 2 1 Special Weapon 1 | . 1 . . Impact Weapon 1 | . . . 1 Slashing Weapon 1 | . . . 1 Piercing Weapon . | . . . . Special Melee Weapon . | . . . . Unidentified Prototypes 2 | . . . 2 Parts Lost 27 | . . 10 17 Power 4 | . . 1 3 Propulsion 9 | . . 2 7 Utility 7 | . . 3 4 Weapon 7 | . . 4 3 Highest Loss Streak 5 | . . 5 5 To Critical Strikes 1 | . . 1 . Average Backups 12 | . 7 14 14 Power . | . . . . Propulsion 3 | . 3 4 2 Utility 5 | . 2 5 5 Weapon 3 | . 1 3 5 Tool/Special . | . . . . Unused Backups 15 | . . 5 10 Power . | . . . . Propulsion 5 | . . 5 . Utility 5 | . . . 5 Weapon 4 | . . . 4 Tool/Special 1 | . . . 1 Average Slot Usage (%) 84 | . 85 89 79 Engine 6 | . 14 6 2 Treads 2 | . . . 5 Leg 16 | . 28 21 6 Device 9 | . . 10 13 Storage 10 | . 14 11 8 Processor 5 | . . . 14 Protection 9 | . . 18 5 Energy Gun 8 | . 23 9 . Energy Cannon 6 | . . 2 12 Ballistic Gun 2 | . . 6 . Special Weapon 1 | . 4 . . Impact Weapon 1 | . . . 4 Peak Build Rating 30 | 6 8 17 30 Average Rating 16 | 3 6 12 25 On Entrance 7 | . 6 7 17 Avg Prop Armor Cover (%) 9 | . . . 9 Naked Turns . | . . . . Heaviest Build 47 | 12 27 39 47 Greatest Support 43 | 20 20 23 43 Greatest Overweight (x) 11 | . 1 3 11 Average Overweight (x) . | . . 1 1 Largest Inventory Capacity 15 | 8 15 15 15 Average Capacity 14 | 6 11 15 14 Most Carried 15 | 1 13 15 15 Average Carried 12 | . 8 14 14 Final Capacity 15 | 8 15 15 5 Final Carried 15 | . 13 15 5 Class Distribution -------------------- 86% | Mutant 13% | Scavenger-Mutant Dominant Class ---------------- Mutant | -10/Materials Mutant | -9/Materials Mutant | -8/Materials Resources | -11 -10 -9 -8 ----------- Run | Yrd Mat Mat Mat Matter Collected 1212 | 106 184 563 359 Remotely . | . . . . Salvage Created 2610 | . 241 954 1415 Parts 146 | . 24 70 52 Haulers Intercepted 3 | . . 3 . Recyclers Shooed 6 | . 3 . 3 Parts Field Recycled . | . . . . Retrieved Matter . | . . . . Parts Self-Destructed . | . . . . Prevented . | . . . . Parts Restored . | . . . . Kills | -11 -10 -9 -8 ------- Run | Yrd Mat Mat Mat Combat Hostiles Destroyed 60 | . 8 25 27 Melee 4 | . . . 4 Guns 20 | . 8 12 . Cannons 21 | . . 8 13 AOE 7 | . . 5 2 Classes Destroyed 12 | . 4 5 3 Worker 3 | . . . 3 Builder 2 | . . 1 1 Tunneler 1 | . . 1 . Hauler 3 | . . 3 . Recycler 3 | . . 1 2 Operator 3 | . 1 1 1 Watcher 3 | . 1 . 2 Swarmer 17 | . 5 12 . Cutter 2 | . . . 2 Grunt 29 | . 3 8 18 Sentry 9 | . . 5 4 Hunter 3 | . . . 3 Best Kill Streak 9 | . 5 9 4 Combat Bots Only 9 | . 5 9 3 Max Kills in Single Turn 3 | . 1 3 2 Gunslinging . | . . . . Exploded 3 | . . 3 2 Melee 1 | . . . 1 Uniques/NPCs Destroyed . | . . . . Combat | -11 -10 -9 -8 -------- Run | Yrd Mat Mat Mat Hostile Shots Fired 434 | . 25 203 206 Missed 83 | . 5 34 44 Hits 351 | . 20 169 162 Melee 6 | . . . 6 Projectile 345 | . 20 169 156 AOE 1 | . . . 1 Critical Strikes 16 | . 1 4 11 Damage Taken 4572 | . 170 1788 2614 Core 808 | . 37 221 550 Absorbed by Shields . | . . . . Redirected to Shielding 41 | . . 41 . Regen/Repaired (Parts) 18 | . . 18 . Core Remaining (%) 76 | 100 85 44 . Volleys Fired 189 | . 17 105 67 Largest 2 | . 2 2 2 Hottest 160 | . 140 116 160 Shots Fired 325 | . 34 188 103 Gun 176 | . 32 144 . Cannon 142 | . . 41 101 Launcher 5 | . . 3 2 Special 2 | . 2 . . Kinetic 55 | . . 55 . Thermal 225 | . 2 122 101 Explosive 5 | . . 3 2 Electromagnetic 40 | . 32 8 . Robot Hit Streak 11 | . 5 11 11 Robot Miss Streak 5 | . 3 5 4 Penetration Max . | . . . . Secondary Targets 2 | . 2 . . Max Gunslinging Chain 1 | . 1 . . Shots Hit Robots 227 | . 17 118 92 Core Hits 88 | . 11 42 35 Critical Kills 1 | . . . 1 Critical Parts Destroyed 9 | . . 2 7 Critical Strikes 21 | . 2 9 10 Burn 7 | . . 7 . Destroy 2 | . . 2 . Corrupt 2 | . 2 . . Smash 8 | . . . 8 Sever 2 | . . . 2 Melee Attacks 41 | . . . 41 Impact 37 | . . . 37 Slashing 4 | . . . 4 Piercing . | . . . . Sneak Attacks 3 | . . . 3 Combat Hostiles . | . . . . Follow-up Attacks . | . . . . Damage Inflicted 5587 | . 266 2049 3272 Guns 1663 | . 261 1402 . Cannons 1978 | . . 438 1540 Explosions 482 | . . 167 315 Melee 1374 | . . . 1374 Ramming 90 | . 5 42 43 Kinetic 540 | . . 540 . Thermal 2730 | . . 1190 1540 Explosive 482 | . . 167 315 Electromagnetic 371 | . 261 110 . Impact 1325 | . . . 1325 Slashing 49 | . . . 49 Piercing . | . . . . Highest Corruption 6 | . . 6 . Average Corruption 3 | . . 3 . Corruption Purged . | . . . . Corruption Blocked . | . . . . Effects 33 | . . 33 . Message Errors 10 | . . 10 . Matter Fused 6 | . . 6 . Heat Flow Errors 7 | . . 7 . Energy Discharges 3 | . . 3 . Parts Fused 1 | . . 1 . Data Loss (minor) 4 | . . 4 . Misfires 2 | . . 2 . Overload Shots . | . . . . Overflow Damage 582 | . . 20 562 Projectiles 46 | . . 12 34 Explosions 16 | . . 8 8 Melee 520 | . . . 520 Knockbacks 8 | . . . 8 Impact 7 | . . . 7 Kinetic . | . . . . Secondary 1 | . . . 1 Self-Inflicted Damage 102 | . . 16 86 Shots 3 | . . 1 2 Rammed 5 | . . . 5 Targets Rammed 22 | . 3 11 8 Kicked 16 | . 3 11 2 Crushed 1 | . . . 1 Highest Temperature 538 | . 124 538 496 Average Temperature 132 | . 50 135 154 Received Heat Transfer 1737 | . 36 594 1107 Effects 21 | . . 18 3 Shutdowns 4 | . . 3 1 Energy Bleed 4 | . . 2 2 Interference 5 | . . 5 . Matter Decay 3 | . . 3 . Short Circuit 1 | . . 1 . Damage (minor) 1 | . . 1 . Damage (major) 3 | . . 3 . Siege Activations . | . . . . Martial Activations . | . . . . Shielding Activations . | . . . . Robots Disrupted . | . . . . Combat Hostiles . | . . . . Robots Corrupted 10 | . . . 10 Combat Hostiles 8 | . . . 8 Parts Fried 11 | . 2 1 8 Impact Corruptions 21 | . . . 21 Robots Melted . | . . . . Combat Hostiles . | . . . . Parts Melted 8 | . . 4 4 Heat Transferred 6092 | . . 3367 2725 Parts Sabotaged . | . . . . Parts Stolen . | . . . . Parts Stripped . | . . . . Power Chain Reactions . | . . . . Alert | -11 -10 -9 -8 ------- Run | Yrd Mat Mat Mat Maximum Alert Level 1 | . . 1 1 Low Security (%) 67 | 100 100 40 78 Level 1 32 | . . 59 21 Level 2 . | . . . . Level 3 . | . . . . Level 4 . | . . . . Level 5 . | . . . . High Security . | . . . . Max Security . | . . . . Peak Influence 343 | . 90 263 343 Initial 95 | . . . 95 Average 122 | . 28 162 128 Influence Increases 1906 | . 212 777 917 Destroy 0b10 Robot/C 1200 | . 160 500 540 Destroy 0b10 Robot/NC 90 | . 10 35 45 Destroy Leader 292 | . 22 116 154 Successful Hack 19 | . 5 12 2 Disable Machine 45 | . 15 . 30 Destroy Structure 80 | . . 24 56 Lose Combat Pursuer 180 | . . 90 90 Influence Decreases 1589 | . 212 550 827 Entered New Map 132 | . . . 132 Time Decay 1225 | . 212 480 533 Lost Part 232 | . . 70 162 Squads Dispatched 13 | . 2 3 8 Investigation 7 | . 1 2 4 Extermination . | . . . . Reinforcement 6 | . 1 1 4 Assault . | . . . . Garrison . | . . . . Intercept . | . . . . Searches Triggered . | . . . . Construction Impeded 1 | . . . 1 Haulers Reinforced . | . . . . Active Scanning Responses . | . . . . Cargo Convoy Interrupts . | . . . . Stealth | -11 -10 -9 -8 --------- Run | Yrd Mat Mat Mat Distress Signals 11 | . 1 3 7 Communications Jammed . | . . . . Distress Signals . | . . . . Times Spotted 108 | . 13 47 48 Peak Tracking Total 6 | . 4 6 6 Tactical Retreats 11 | . . 5 6 Traps | -11 -10 -9 -8 ------- Run | Yrd Mat Mat Mat Traps Triggered 4 | . . 3 1 Indirectly . | . . . . Trap Hack Attempts . | . . . . Triggered . | . . . . Disarmed . | . . . . Reprogrammed . | . . . . Reused . | . . . . Traps Extracted . | . . . . Installed . | . . . . Triggered . | . . . . Machines | -11 -10 -9 -8 ---------- Run | Yrd Mat Mat Mat Machines Disabled 3 | . 1 . 2 Max in Single Turn 1 | . 1 . 1 Machines Repaired . | . . . . Machines Dismantled . | . . . . Machines Sabotaged . | . . . . Overloaded Fab Kills . | . . . . Hacking | -11 -10 -9 -8 --------- Run | Yrd Mat Mat Mat Machines Accessed 21 | . 5 10 6 Terminals 18 | . 5 8 5 Fabricators . | . . . . Repair Stations 1 | . . 1 . Recycling Units . | . . . . Scanalyzers 2 | . . 1 1 Garrison Access . | . . . . Total Hacks 42 | . 8 18 16 Successful 16 | . 5 9 2 Failed 25 | . 3 9 13 Catastrophic 7 | . . 3 4 Database Lockouts 1 | . . . 1 Manual 18 | . 1 5 12 Terminals 35 | . 8 13 14 Fabricators . | . . . . Repair Stations 2 | . . 2 . Recycling Units . | . . . . Scanalyzers 5 | . . 3 2 Garrison Access . | . . . . Terminal Hacks 11 | . 5 5 1 Branch Access Points 2 | . 1 1 . Alert Level 1 | . . 1 . Maintenance Status 1 | . . 1 . Hauler Manifests 3 | . 1 1 1 Registered Components 2 | . 1 1 . Zone Layout 2 | . 2 . . Fabricator Hacks . | . . . . Repair Station Hacks 2 | . . 2 . Scan Component 1 | . . 1 . Repair 1 | . . 1 . Recycling Unit Hacks . | . . . . Scanalyzer 3 | . . 2 1 Retrieve Study 3 | . . 2 1 Garrison Access Hacks . | . . . . Unauthorized Hacks . | . . . . Terminals . | . . . . Fabricators . | . . . . Repair Stations . | . . . . Recycling Units . | . . . . Scanalyzers . | . . . . Garrison Access . | . . . . Data Cores Recovered 2 | . 1 1 . Used 2 | . 1 1 . Hacking Detections 12 | . 2 5 5 Full Trace Events 4 | . . 2 2 Feedback Events 1 | . . 1 . Corruption 1 | . . 1 . Feedback Blocked . | . . . . Robot Schematics Acquired . | . . . . Robots Built . | . . . . Authchips . | . . . . Time . | . . . . Total Robot Build Rating . | . . . . Part Schematics Acquired . | . . . . Parts Built . | . . . . Authchips . | . . . . Time . | . . . . Total Part Build Rating . | . . . . Part Studies Acquired 3 | . . 2 1 Parts Repaired 1 | . . 1 . Time 26 | . . 26 . Parts Recycled . | . . . . Recycled Matter . | . . . . Retrieved Matter . | . . . . Retrieved Components . | . . . . Parts Scanalyzed . | . . . . Part Schematics Acquired . | . . . . Parts Damaged . | . . . . Bothacking | -11 -10 -9 -8 ------------ Run | Yrd Mat Mat Mat Used RIF Installer . | . . . . Robots Hacked . | . . . . Non-combat . | . . . . Combat . | . . . . Robot Hacks Applied . | . . . . Relay Couplers Released . | . . . . Fabnet Peak Effective % . | . . . . Robots Rewired . | . . . . Allies Hacked . | . . . . Hacks Repelled . | . . . . Allies | -11 -10 -9 -8 -------- Run | Yrd Mat Mat Mat Total Allies . | . . . . Largest Group . | . . . . Highest-Rated Group . | . . . . Highest-Rated Ally . | . . . . Total Orders . | . . . . Ally Attacks . | . . . . Total Damage . | . . . . Kills . | . . . . Allies Corrupted . | . . . . Allies Melted . | . . . . Intel | -11 -10 -9 -8 ------- Run | Yrd Mat Mat Mat Active Infowar (turns) 2157 | . . 1327 830 Sensors 2157 | . . 1327 830 Robot Analysis Total . | . . . . Derelict Logs Recovered . | . . . . Drone Launches . | . . . . Drone Recoveries . | . . . . Exploration | -11 -10 -9 -8 ------------- Run | Yrd Mat Mat Mat Turns Passed 4166 | 55 732 1687 1692 Spaces Moved 1705 | 46 445 668 546 Core 23 | 15 . . 8 Treads 230 | . . . 230 Legs 1290 | 31 445 668 146 Wheels 107 | . . . 107 Hover 9 | . . . 9 Flight 46 | . . . 46 Fastest Speed 37 | 50 120 175 37 Average Speed 172 | 97 146 182 188 Slowest Speed 600 | 120 190 330 600 Overloaded Moves . | . . . . Propulsion Burnouts . | . . . . Robots Hopped . | . . . . Potential Cave-ins . | . . . . Cave-ins Triggered . | . . . . Exploration Rate (%) 44 | 4 60 60 53 Regions Visited 3 Branch Regions . Pre-discovered Areas . | . . . . Known Exits Taken . | . . . . Unknown Exits Taken 3 | 1 1 1 . Scrap Searched . | . . . . Spaces Dug . | . . . . Terrain Destroyed 87 | . . 25 62 Melee . | . . . . Projectile 34 | . . . 34 AOE 53 | . . 25 28 Terrain Rammed . | . . . . Walls Destroyed . | . . . . Machines Disabled . | . . . . Actions | -11 -10 -9 -8 --------- Run | Yrd Mat Mat Mat Total 2511 | 54 488 950 1019 Wait 400 | . 7 104 289 Move 1702 | 45 444 667 546 Hop . | . . . . Pick Up 38 | . 13 15 10 Fast Attach 33 | 7 1 7 18 Attach 16 | . . 8 8 Detach 3 | 1 1 . 1 Swap 32 | . 1 15 16 Drop 35 | 1 1 18 15 Fire 189 | . 17 105 67 Melee 41 | . . . 41 Ram . | . . . . Kick 16 | . 3 11 2 Crush 6 | . . . 6 Escape Stasis . | . . . . Rewire . | . . . . Trap . | . . . . Miscellaneous . | . . . . Route ------- -11/Scrapyard -10/Materials (discovered 4 exits: *Mat x2 / *Min x2) -9/Materials (discovered 3 exits: *Mat x2 / *Min) -8/Materials History --------- Turn | Location | Event 8 | -11/Scrapyard | Discovered new exit (range 16) 56 | -11/Scrapyard | Entered Materials 69 | -10/Materials | Identified exit to Mines 218 | -10/Materials | Discovered new exit (range 3) 304 | -10/Materials | Build established: Mutant 430 | -10/Materials | Discovered new exit (range 16) 788 | -10/Materials | Entered another Materials area 788 | -9/Materials | Evolved 2 slots: Utility x2 970 | -9/Materials | Lost 4 parts (1p1u2w) 1102 | -9/Materials | Identified exit to Mines 1380 | -9/Materials | Destroyed 9 combat bots 1386 | -9/Materials | Lost 5 parts (2n1u2w) 1655 | -9/Materials | Repaired Sensor Array 1783 | -9/Materials | Discovered new exit (range 5) 1887 | -9/Materials | Core integrity fell below 50% 2468 | -9/Materials | Discovered new exit (range 5) 2475 | -9/Materials | Entered another Materials area 2475 | -8/Materials | Evolved 2 slots: Propulsion x1, Utility x1 2709 | -8/Materials | Central database locked down 2995 | -8/Materials | Lost 4 parts (1p2n1u) 3307 | -8/Materials | Lost 5 parts (1p1n1u2w) 3668 | -8/Materials | Core integrity fell below 50% 4016 | -8/Materials | Core integrity fell below 20% 4167 | -8/Materials | Destroyed by Y-45 Defender with Beam Rifle Last Messages --------------- crushing effect. 04086_ W-25 Informer system terminally corrupted. 04086_ Visual Processing Unit fried. 04086_ K-01 Serf collects debris. 04110_ Critical hit (Burn: +37). 04119_ Heat Sink melted. 04119_ Y-45 Defender destroyed. 04125_ Destroyed Heat Sink. 04129_ Lgt. Ion Engine destroyed. 04129_ Critical hit (Burn: +37). 04129_ Carbon-fiber Leg destroyed. 04133_ U-05 Engineer builds a Wall. 04135_ Acquired Imp. Ion Engine. 04147_ Dropped Lrg. Storage Unit. 04147_ Dropped Hvy. Particle Cannon. 04148_ Dropped Blade Saw. 04149_ Acquired Hvy. Hammer. 04151_ Dropped Rocket Launcher. 04151_ Acquired Imp. Grenade Launcher. Map ----- +----------------------------------------------------+ | ?????????????????????????????????????????????????? | | ?????????????##########??????????????????????????? | | ?????????????# #??????????????????????????? | | ?????????????# #??????????????????????????? | | ?????????????# #??????????????????????????? | | ?????????????# #??????????????????????????? | | ?????????????# #??????????????????????????? | | ?????????????# #??????????????????????????? | | ?????????????# [ ! #??????????????????????????? | | ?????????????? #??????????????????????????? | | ?? ? ??????????? ????????????????????????????? | | ?? ???????????##+##????????????????????????????? | | ??# ??????????# #?#########??????????????????? | | ??# ???????#### # ??????????????????? | | ??# ???????+ # " " ""????????????????????? | | ??# ##+#???#### + "G" ""????????????????????? | | ??# #??????# # " ""????????????????????? | | ??# #??????# w# #?????????????????? | | +## #??????# ############?????????????????? | | #??????# #?????????????????????? | | +??????# #?????????????????????? | | """" #??????# #?????????????????????? | | """" ######## #?????????????????????? | | """" #?????????????????????? | | ############### #?????????????????????? | | #?????????????# @ #?????????????????????? | | #????????????# #????????????????????? | | ] #????????????# ???????????????????? | | ]!!!####?????????+ Y ?????????????????? | | #####]!]/ +?????????# ???????????????? | | ????# ######?????????# #######??????????????? | | ????#!#??????????????#######????????????????????? | | ^????#]#?????????????????????????????????????????? | | ??###/######????????????????????????????????????? | | ??# #????????????????????????????????????? | | ### """ !=!#????????????????????????????????????? | | [# """ !=!#????????????????????????????????????? | | %# """ ==!#????????????????????????????????????? | | + #???????????????????????????????????? | | # """ "" ##???????????????????????????????????? | | # """ Y" #????????????????????????????????????? | | "# """ "" #????????????????????????????????????? | | "# ?????????????????????????????????????? | | ##########?????????????????????????????????????? | | #??????????????????????????????????????????????? | | #??????????????????????????????????????????????? | | %#########??????????????????????????????????????? | | %# ???????????????????????????????????????? | | # """???????????????????????????????????????? | | # """""??????????????????????????????????????? | +----------------------------------------------------+ Best States ------------- Heat Dissipation 50 Energy Generation 14 Energy Capacity 265 Matter Stores 300 Matter Capacity 300 Sight Range 16 Robot Scan Range 15 Terrain Scan Density 10 Armor Coverage 225 Core Shielding 20 Evasion (%) 62 Armor Integrity Analysis 30 Recoil Reduction 2 Offensive Hacking 10 Item Schematics ----------------- None Robot Schematics ------------------ None Fabricated ------------ Nothing Repaired ---------- Sensor Array | 10% | -9/Materials Studied --------- Aluminum Leg | -9/Materials | Hacked Imp. Aluminum Leg | -9/Materials | Hacked VTOL Module | -8/Materials | Hacked Alien Tech Used ----------------- None Achievements -------------- None Challenges ------------ None Game ------ Seed NanofilamentsSalvageTreads Manual? 0 Play Time 00:25:42 Cumulative 152.3 hours Start 2026.04.22 @ 13:28:35 End 2026.04.22 @ 13:53:57 Sessions 1 Manual Loads 0 Difficulty Rogue Special Mode None Game No. 235 Rogue 235 Adventurer 0 Explorer 0 Win Type - Total 1 Types 1/0/0/0/0/0/0/0/0/0 Lore% 53 Gallery% 56 Achievement% 42 Wizard Run 0 Options --------- Layout 1 ASCII 0 Keyboard 1 Movement Arrows Keybinds 0 Fullscreen 1 Font 24/Smallcaps Map View 50x35 Zoom Use 0% Tactical HUD 1 Map Filters NONE Filters NONE Steam 1 RUN: 6015f956-6de6-40f4-b041-4f1654fa2053